fUSD/lending_fUSD_20240220
["ID","MTS","AMOUNT","RATE_DAILY","PERIOD"]
[314621269,1708458637886,-15969.64505826,0.00041132,19]
[314621271,1708458637895,-20323.66385804,0.00041132,19]
[314621289,1708458640840,-13509.06913457,0.00041132,19]
[314621290,1708458640850,-9909.89450021,0.00041132,14]
[314621291,1708458640860,-821.01,0.00041151,2]
[314621292,1708458640870,-210.0,0.00041191,4]
[314621293,1708458640881,-456.7406152,0.00041526,2]
[314621294,1708458640891,-267.58,0.00041546,2]
[314621295,1708458640900,-204.0,0.00041754,15]
[314621296,1708458640910,-10194.961255,0.0004193,11]
[314621297,1708458640920,-5334.15917879,0.00041939,4]
[314621298,1708458640930,-11046.9675754,0.00041939,4]
[314621299,1708458640939,-1921.16941945,0.00041982,5]
[314621300,1708458640949,-200.0,0.00042,2]
[314621301,1708458640959,-456.7406152,0.00042005,2]
[314621302,1708458640969,-1233.51,0.00042063,2]
[314621304,1708458640981,-188.35,0.00042083,2]
[314621306,1708458640992,-3398.32041833,0.00042117,11]
[314621307,1708458641001,-567.12,0.00042127,2]
[314621308,1708458641012,-153.81,0.00042261,2]
[314621309,1708458641023,-1013.16,0.00042294,15]
[314621310,1708458641033,-154.31,0.00042395,2]
[314621312,1708458641044,-150.55,0.00042404,2]
[314621313,1708458641054,-456.7406152,0.00042484,2]
[314621314,1708458641064,-3398.32041833,0.0004259,11]
[314621315,1708458641074,-213.71,0.000426,4]
[314621316,1708458641084,-213.71,0.000426,4]
[314621317,1708458641093,-213.71,0.000426,4]
[314621318,1708458641103,-213.71,0.000426,4]
[314621319,1708458641114,-213.71,0.000426,4]
[314621320,1708458641124,-213.71,0.000426,4]
[314621321,1708458641133,-213.71,0.000426,4]
[314621322,1708458641143,-213.71,0.000426,4]
[314621323,1708458641152,-213.71,0.000426,4]
[314621324,1708458641161,-213.71,0.000426,4]
[314621325,1708458641171,-213.71,0.000426,4]
[314621326,1708458641181,-213.71,0.000426,4]
[314621327,1708458641192,-213.71,0.000426,4]
[314621328,1708458641201,-213.71,0.000426,4]
[314621329,1708458641211,-213.71,0.000426,4]
[314621330,1708458641220,-213.71,0.000426,4]
[314621331,1708458641233,-213.71,0.000426,4]
[314621332,1708458641243,-213.71,0.000426,4]
[314621333,1708458641253,-213.71,0.000426,4]
[314621334,1708458641263,-213.71,0.000426,4]
[314621335,1708458641274,-10194.961255,0.00042925,11]
[314621336,1708458641284,-5334.15917879,0.00042934,5]
[314621337,1708458641294,-11046.9675754,0.00042934,5]
[314621338,1708458641304,-3398.32041833,0.00042963,11]
[314621339,1708458641313,-456.7406152,0.00042964,2]
[314621340,1708458641323,-206.18,0.00043,2]
[314621341,1708458641332,-481.44966921,0.00043,7]
[314621342,1708458641341,-169.0,0.00043,90]
[314621343,1708458641351,-151.0,0.00043,90]
[314621344,1708458641361,-738.88,0.00043014,2]
[314621345,1708458641370,-204.0,0.00043157,19]
[314621346,1708458641380,-180.0,0.00043172,2]
[314621347,1708458641389,-267.58,0.0004319,2]
[314621348,1708458641399,-821.01,0.00043415,2]
[314621349,1708458641409,-456.7406152,0.00043443,2]
[314621350,1708458641417,-435.0,0.00043547,30]
[314621351,1708458641424,-1921.16941932,0.00043561,5]
[314621352,1708458641430,-3398.32041833,0.00043568,11]
[314621353,1708458641438,-567.12,0.00043578,2]
[314621354,1708458641446,-2000.0,0.000436,2]
[314621355,1708458641454,-3398.32041833,0.00043734,11]
[314621356,1708458641462,-1500.0,0.00043744,2]
[314621357,1708458641471,-1500.0,0.0004376,2]
[314621358,1708458641481,-153.81,0.00043846,2]
[314621359,1708458641488,-10194.961255,0.0004392,11]
[314621360,1708458641495,-456.7406152,0.00043922,2]
[314621361,1708458641503,-5334.15917879,0.00043929,6]
[314621362,1708458641513,-11046.9675754,0.00043929,6]
[314621363,1708458641522,-6796.64083666,0.0004399,11]
[314621364,1708458641530,-188.35,0.00043995,2]
[314621365,1708458641537,-7500.0,0.00044,3]
[314621366,1708458641544,-155.0,0.00044,2]
[314621367,1708458641551,-300.0,0.00044,2]
[314621368,1708458641559,-300.0,0.00044,2]
[314621369,1708458641566,-150.0,0.00044,2]
[314621370,1708458641576,-354.76,0.00044,2]
[314621371,1708458641583,-3398.32041833,0.00044124,11]
[314621372,1708458641592,-1500.0,0.00044134,2]
[314621373,1708458641602,-151.022178,0.00044148,42]
[314621374,1708458641612,-151.022178,0.00044248,43]
[314621375,1708458641622,-154.31,0.00044322,2]
[314621376,1708458641631,-151.022178,0.00044348,42]
[314621377,1708458641641,-3398.32041833,0.00044382,11]
[314621378,1708458641651,-82456.1984712,0.00044382,10]
[314621379,1708458641660,-2759.4439032,0.00044392,5]
[314621380,1708458641729,-1011.32499999,0.00044392,5]
[314621388,1708458642460,-402.41529427,0.00044392,5]
[314621390,1708458642471,-404.34576589,0.00044392,5]
[314621391,1708458642482,-151.0,0.00044399,4]
[314621392,1708458642491,-456.7406152,0.00044402,2]
[314621393,1708458642500,-272.62114178,0.00044407,2]
[314621394,1708458642803,-0.00045027,0.00044407,2]
[314621395,1708458643026,-13.11087992,0.00044407,2]
[314621396,1708458643036,-3398.32041833,0.00044411,11]
[314621397,1708458643046,-155.79006496,0.00044421,2]
[314621398,1708458643056,-1735.95210602,0.00044421,5]
[314621399,1708458643066,-1500.0,0.00044432,2]
[314621400,1708458643076,-151.022178,0.00044448,43]
[314621401,1708458643087,-206.18,0.00044521,2]
[314621402,1708458643096,-151.022178,0.00044548,42]
[314621403,1708458643106,-204.0,0.00044561,22]
[314621404,1708458643116,-150.0,0.00044638,2]
[314621405,1708458643126,-3398.32041833,0.00044643,11]
[314621406,1708458643136,-150.0,0.00044645,2]
[314621407,1708458643146,-151.022178,0.00044648,43]
[314621408,1708458643156,-150.0,0.00044649,2]
[314621409,1708458643165,-150.0,0.00044653,2]
[314621410,1708458643174,-150.0,0.00044668,2]
[314621411,1708458643184,-10194.961255,0.0004468,11]
[314621412,1708458643195,-15387.2970639,0.0004469,2]
[314621413,1708458643204,-3398.32041833,0.00044722,11]
[314621415,1708458643214,-150.0,0.00044727,2]
[314621417,1708458643223,-150.0,0.00044744,2]
[314621419,1708458643235,-151.022178,0.00044748,42]
[314621420,1708458643244,-150.0,0.00044748,2]
[314621421,1708458643253,-150.0,0.00044755,2]
[314621423,1708458643263,-150.0,0.00044759,2]
[314621424,1708458643272,-300.0,0.00044764,2]
[314621425,1708458643282,-3398.32041833,0.00044771,12]
[314621426,1708458643291,-1500.0,0.00044772,2]
[314621427,1708458643302,-150.0,0.00044773,2]
[314621428,1708458643311,-150.0,0.00044773,2]
[314621429,1708458643320,-150.0,0.00044777,2]
[314621430,1708458643330,-1768.82256124,0.00044781,19]
[314621431,1708458643339,-542.44322807,0.00044781,2]
[314621432,1708458643349,-156.55240809,0.0004479,19]
[314621433,1708458643358,-219.08124359,0.0004479,2]
[314621434,1708458643368,-150.0,0.00044796,2]
[314621435,1708458643378,-150.0,0.00044799,2]
[314621436,1708458643387,-150.0,0.00044813,2]
[314621437,1708458643397,-150.0,0.00044814,2]
[314621438,1708458643406,-263.86405763,0.00044815,2]
[314621439,1708458643416,-150.0,0.00044824,2]
[314621440,1708458643426,-150.0,0.00044833,2]
[314621441,1708458643437,-267.58,0.00044834,2]
[314621442,1708458643446,-164.75896406,0.00044834,2]
[314621443,1708458643455,-150.0,0.00044834,2]
[314621444,1708458643464,-150.0,0.00044836,2]
[314621445,1708458643475,-3398.32041833,0.00044838,12]
[314621446,1708458643486,-150.0,0.00044845,2]
[314621447,1708458643496,-151.022178,0.00044848,43]
[314621448,1708458643506,-150.0,0.00044854,2]
[314621449,1708458643516,-150.0,0.0004486,2]
[314621450,1708458643527,-150.0,0.0004486,2]
[314621451,1708458643537,-150.0,0.00044863,2]
[314621452,1708458643547,-150.0,0.00044875,2]
[314621453,1708458643557,-150.0,0.00044876,2]
[314621454,1708458643567,-169.0,0.00044877,90]
[314621455,1708458643577,-151.0,0.00044877,90]
[314621456,1708458643587,-82456.1984712,0.0004488,10]
[314621457,1708458643597,-456.7406152,0.00044881,2]
[314621458,1708458643608,-150.0,0.00044881,2]
[314621459,1708458643618,-82456.1984712,0.00044889,10]
[314621460,1708458643628,-2017.7687,0.0004489,2]
[314621461,1708458643637,-229467.89912828,0.0004489,2]
[314621462,1708458643650,-662.0630016,0.0004489,2]
[314621467,1708458645579,-150.0,0.00044637,2]
[314621468,1708458645588,-150.0,0.00044738,2]
[314621469,1708458645598,-150.0,0.00044835,2]
[314621470,1708458645607,-150.0,0.00044837,2]
[314621471,1708458645617,-150.0,0.00044866,2]
[314621472,1708458645626,-136.94234472,0.00044883,2]
[314621473,1708458645704,-13.05765528,0.00044883,2]
[314621474,1708458645713,-14870.03787012,0.0004489,2]
[314621475,1708458645722,-150.0,0.00044892,2]
[314621476,1708458645735,-100000.0,0.00044899,2]
[314621477,1708458645744,-5000.0,0.000449,7]
[314621478,1708458645754,-227.4640275,0.000449,2]
[314621479,1708458645766,-1141.26152342,0.000449,2]
[314621480,1708458645775,-380.30793426,0.000449,2]
[314621481,1708458645785,-1364.04516336,0.000449,2]
[314621482,1708458645795,-5334.15917879,0.00044924,6]
[314621483,1708458645806,-11046.9675754,0.00044924,6]
[314621484,1708458645816,-150.0,0.00044947,2]
[314621485,1708458645826,-151.022178,0.00044948,42]
[314621486,1708458645835,-82456.1984712,0.00044989,10]
[314621487,1708458645845,-162.38833905,0.00044989,2]
[314621488,1708458645855,-4979.89112243,0.00044989,2]
[314621489,1708458645865,-72986.15334695,0.0004499,10]
[314621490,1708458645885,-2287.57011309,0.0004499,10]
[314621491,1708458645902,-556.68973166,0.0004499,10]
[314621492,1708458649533,301.8,0.00034342,2]
[314621494,1708458664518,243.0,0.00036139,2]
[314621495,1708458670399,96768.4443848,0.00023,2]
[314621496,1708458670430,803.77311545,0.00023,2]
[314621497,1708458670479,80957.88322856,0.00023,2]
[314621498,1708458735474,190.84202573,0.0003,15]
[314621499,1708458767749,2570.4807,0.0002509,2]
[314621500,1708458822441,593.64618954,0.000301,2]
[314621501,1708458833678,473196.77651528,0.00023,2]
[314621502,1708458833702,259.50025196,0.00023,2]
[314621503,1708458833724,2000.0,0.00023,2]
[314621504,1708458833746,2000.0,0.00023,2]
[314621505,1708458833767,2000.0,0.00023,2]
[314621506,1708458833789,2000.0,0.00023,2]
[314621507,1708458833812,2000.0,0.00023,2]
[314621508,1708458833833,2000.0,0.00023,2]
[314621509,1708458833858,2000.0,0.00023,2]
[314621510,1708458833883,2000.0,0.00023,2]
[314621511,1708458833907,2000.0,0.00023,2]
[314621512,1708458833930,2000.0,0.00023,2]
[314621513,1708458833955,24000.0,0.00023,2]
[314621514,1708458833980,2101779.0,0.00023,2]
[314621515,1708458834013,1462474.50306553,0.00023,2]
[314621519,1708459223037,8000.01,0.00032,120]
[314621520,1708459626104,-507.82533852,0.00025,3]
[314621521,1708459721417,1309.3952,0.000249,14]
[314621524,1708459746101,-242.17466148,0.00025,3]
[314621525,1708459746121,-2335.13715985,0.00025,2]
[314621526,1708459746142,-5752.0,0.00026999,2]
[314621527,1708459746162,-800.0,0.00027,3]
[314621528,1708459746182,-3894.47348854,0.00027297,2]
[314621529,1708459746205,-179.69,0.00027397,2]
[314621530,1708459746226,-172.64,0.00027397,2]
[314621531,1708459746247,-156.52647384,0.000279,2]
[314621532,1708459746265,-21371.41021629,0.00028,2]
[314621533,1708459746295,-27415.307,0.00028,2]
[314621534,1708459762119,-2335.13715985,0.00025,2]
[314621535,1708459762141,-30051.73281963,0.00028,2]
[314621536,1708459762161,-527.79479626,0.00028976,2]
[314621537,1708459762182,-850.0,0.00029,3]
[314621538,1708459762205,-156.52647383,0.00029076,2]
[314621539,1708459762224,-499.99,0.00029076,2]
[314621540,1708459762244,-8160.02,0.00029076,2]
[314621541,1708459762263,-150.99,0.00029076,2]
[314621542,1708459762287,-586.1,0.00029076,2]
[314621543,1708459762307,-156.52647383,0.00030251,2]
[314621544,1708459762335,-900.0,0.00031,3]
[314621545,1708459762360,-156.52647383,0.00031427,2]
[314621546,1708459762380,-14536.87,0.00031963,2]
[314621547,1708459762401,-3064.932,0.00031963,2]
[314621548,1708459762422,-179.69,0.00031963,2]
[314621549,1708459762443,-156.52647383,0.00032603,2]
[314621550,1708459762462,-622.31,0.00032603,2]
[314621551,1708459762481,-1412.67810369,0.00033,2]
[314621552,1708459762501,-950.0,0.00033,3]
[314621553,1708459762523,-765.69,0.0003374,2]
[314621554,1708459762545,-156.52647383,0.00033778,2]
[314621555,1708459762564,-527.79479625,0.00033888,2]
[314621556,1708459762586,-501.012391,0.0003452,2]
[314621557,1708459762607,-751.518587,0.00034794,2]
[314621558,1708459762628,-1002.024783,0.00034931,2]
[314621559,1708459762649,-156.52647383,0.00034954,2]
[314621560,1708459762669,-298.85346382,0.00035,30]
[314621561,1708459762692,-1000.0,0.00035,3]
[314621562,1708459762713,-1252.530978,0.00035068,2]
[314621563,1708459762733,-443.33,0.00035118,2]
[314621564,1708459762752,-150.0,0.00035118,2]
[314621565,1708459762772,-2464.02,0.00035121,2]
[314621566,1708459762792,-1308.97,0.00035128,2]
[314621567,1708459762812,-229.83,0.00035176,2]
[314621568,1708459762841,-1684.69,0.00035178,2]
[314621569,1708459762859,-2550.08,0.00035183,2]
[314621570,1708459762879,-500.0,0.00035187,2]
[314621571,1708459762902,-1753.54337,0.00035342,2]
[314621572,1708459762922,-250.0,0.00035349,2]
[314621573,1708459762944,-2000.0,0.00035439,2]
[314621574,1708459762965,-250.0,0.00035502,2]
[314621575,1708459762985,-151.49,0.00035532,2]
[314621576,1708459763005,-200.0,0.0003559,2]
[314621577,1708459763024,-500.0,0.00035603,2]
[314621581,1708459769164,-150.0,0.00035658,2]
[314621582,1708459769185,-200.0,0.00035679,2]
[314621583,1708459769207,-1189.76,0.00035788,2]
[314621584,1708459769227,-188.35,0.00035811,2]
[314621585,1708459769248,-953.75,0.00035868,2]
[314621586,1708459769267,-869.25,0.00035901,10]
[314621587,1708459769288,-363.45,0.00035902,2]
[314621588,1708459769308,-23900.0,0.00035907,2]
[314621589,1708459769328,-500.0,0.00035907,2]
[314621590,1708459769347,-200.0,0.0003592,2]
[314621591,1708459769367,-556.67,0.00035942,2]
[314621592,1708459769390,-765.69,0.00036004,2]
[314621593,1708459769409,-170.29,0.00036008,2]
[314621594,1708459769429,-157.96,0.00036043,2]
[314621595,1708459769450,-156.52647383,0.00036129,2]
[314621596,1708459769471,-2444.13252617,0.000362,26]
[314621597,1708459773129,-536.86789483,0.000362,26]
[314621598,1708459773155,-12436.68057314,0.00036239,2]
[314621605,1708459831668,-1292.43924999,0.000362,4]
[314621607,1708459831726,-1844.98111833,0.000362,4]
[314621608,1708459831736,-2173.84369776,0.00036239,2]
[314621609,1708459831750,-766.4757291,0.00036239,2]
[314621610,1708459831760,-157.96,0.00036252,2]
[314621611,1708459831770,-1150.6042709,0.00036389,2]
[314621612,1708459831785,-748.44402773,0.00036389,2]
[314621613,1708459831900,-2538.27053005,0.00036389,2]
[314621614,1708459831959,-5114.21839196,0.00036389,2]
[314621615,1708459831970,-157.96,0.0003646,2]
[314621616,1708459831980,-229.83,0.00036477,2]
[314621617,1708459831990,-173.36,0.00036477,2]
[314621618,1708459832000,-179.69,0.0003653,2]
[314621619,1708459832010,-157.96,0.00036669,2]
[314621620,1708459832019,-157.96,0.00036878,2]
[314621622,1708459832028,-179.46,0.00036943,2]
[314621624,1708459832038,-181.72,0.00036995,2]
[314621626,1708459832046,-1784.64,0.00036998,2]
[314621628,1708459832057,-2480.63719818,0.00037,4]
[314621630,1708459832067,-1050.0,0.00037,3]
[314621632,1708459832076,-157.96,0.00037086,2]
[314621634,1708459832086,-151.49,0.00037175,2]
[314621636,1708459832095,-9551.53722061,0.00037275,2]
[314621638,1708459832105,-157.96,0.00037295,2]
[314621639,1708459832115,-156.52647383,0.00037305,2]
[314621640,1708459832126,-173.36,0.00037389,2]
[314621641,1708459832135,-200.49,0.00037397,2]
[314621642,1708459832151,-377.29,0.000375,2]
[314621643,1708459832162,-157.96,0.00037504,2]
[314621644,1708459832172,-1099.18608179,0.0003759,2]
[314621646,1708459837604,-889.290632,0.0003759,2]
[314621647,1708459837650,-2075.71332292,0.0003759,2]
[314621648,1708459837661,-1629.05845085,0.000376,3]
[314621649,1708459837761,-2892.04838171,0.000376,3]
[314621650,1708459837827,-10251.89316744,0.000376,3]
[314621651,1708459837837,-157.96,0.00037712,2]
[314621652,1708459837848,-229.83,0.00037779,2]
[314621653,1708459837858,-157.96,0.00037921,2]
[314621654,1708459837868,-1800.0,0.00038,39]
[314621655,1708459837879,-155.0,0.0003817,2]
[314621656,1708459837889,-177.58,0.0003817,2]
[314621657,1708459837898,-765.69,0.00038267,2]
[314621658,1708459837907,-173.36,0.00038301,2]
[314621659,1708459837916,-150.27,0.00038356,2]
[314621660,1708459837928,-1127.26,0.00038356,15]
[314621661,1708459837938,-156.52647383,0.00038481,2]
[314621662,1708459837950,-171.81,0.0003863,2]
[314621663,1708459837960,-180.0,0.00038701,2]
[314621664,1708459837969,-177.58,0.00038718,2]
[314621665,1708459837978,-9551.53722061,0.00038743,2]
[314621666,1708459837988,-175.93159875,0.0003879,2]
[314621667,1708459837998,-175.93159875,0.00038795,2]
[314621669,1708459838007,-1382.33746602,0.000388,9]
[314621670,1708459838016,-1778.14116333,0.000388,2]
[314621671,1708459838026,-175.93159875,0.000388,2]
[314621672,1708459838035,-151.49,0.00038819,2]
[314621673,1708459838044,-465.38,0.0003888,10]
[314621674,1708459838053,-36483.6346532,0.0003888,2]
[314621675,1708459838063,-164440.168601,0.0003889,4]
[314621676,1708459838072,-152.74855568,0.0003889,2]
[314621677,1708459838081,-500.0,0.00038899,31]
[314621678,1708459838091,-500.0,0.00038899,31]
[314621679,1708459838101,-500.0,0.00038899,31]
[314621680,1708459838110,-500.0,0.00038899,31]
[314621681,1708459838120,-597.45050911,0.00038899,31]
[314621682,1708459838133,-497.83449544,0.00038899,31]
[314621683,1708459838144,-382.91882314,0.00038899,31]
[314621684,1708459838154,-500.0,0.00038899,31]
[314621685,1708459838164,-500.0,0.00038899,31]
[314621686,1708459838175,-500.0,0.00038899,31]
[314621687,1708459838184,-500.0,0.00038899,31]
[314621688,1708459838195,-500.0,0.00038899,31]
[314621689,1708459838205,-500.0,0.00038899,31]
[314621690,1708459838215,-500.0,0.00038899,31]
[314621691,1708459838225,-500.0,0.00038899,31]
[314621692,1708459838236,-500.0,0.00038899,31]
[314621693,1708459838246,-4.28839964,0.00038899,31]
[314621694,1708459838258,-495.71160036,0.00038899,31]
[314621695,1708459838268,-500.0,0.00038899,31]
[314621696,1708459838278,-58813.73091027,0.000389,3]
[314621697,1708459838298,-747.95149953,0.000389,3]
[314621698,1708459838309,-741.27723955,0.000389,3]
[314621699,1708459838322,-420.8888349,0.000389,3]
[314621700,1708459838334,-313.89851893,0.000389,3]
[314621701,1708459838346,-2065.8478064,0.000389,3]
[314621702,1708459838357,-284.31747801,0.000389,3]
[314621703,1708459838381,-907.01308844,0.000389,3]
[314621704,1708459838392,-756.38767,0.000389,3]
[314621708,1708459840458,-214.99,0.00037823,2]
[314621709,1708459840470,-404.31,0.000389,3]
[314621710,1708459840499,-68570.38857535,0.000389,3]
[314621711,1708459840523,-924.89801361,0.000389,3]
[314621712,1708459840541,-2345.33424412,0.000389,3]
[314621713,1708459841185,-434.89334503,0.000389,3]
[314621714,1708459841197,-52010.2547362,0.000389,3]
[314621715,1708459841208,-3046.18,0.000389,3]
[314621744,1708459842717,-6518.74732363,0.000389,3]
[314621745,1708459842774,-408.2132951,0.000389,3]
[314621746,1708459842831,-293.51421104,0.000389,3]
[314621747,1708459842842,-589.22190399,0.000389,3]
[314621772,1708459845788,-0.44641715,0.000389,3]
[314621773,1708459845798,-6400.08410824,0.000389,3]
[314621774,1708459845809,-990.92875246,0.000389,3]
[314621775,1708459845895,-3e-08,0.000389,3]
[314621776,1708459845906,-141552.52825385,0.000389,3]
[314621777,1708459845916,-86530.46535388,0.000389,2]
[314621778,1708459845928,-1100.0,0.00039,3]
[314621779,1708459845938,-3261.53079473,0.00039078,12]
[314621780,1708459845947,-180.81705309,0.0003908,12]
[314621781,1708459845958,-152.56985575,0.0003908,3]
[314621782,1708459845968,-229.83,0.0003908,2]
[314621783,1708459845978,-35545.98215522,0.00039099,2]
[314621784,1708459845990,-2979.8,0.00039099,2]
[314621785,1708459846003,-5807.74046868,0.00039099,2]
[314621786,1708459846012,-154.31,0.00039129,2]
[314621787,1708459846021,-164440.168601,0.00039158,5]
[314621788,1708459846030,-246660.252902,0.00039168,5]
[314621789,1708459846040,-447057.89,0.00039178,2]
[314621790,1708459846049,-1135.65802738,0.0003918,2]
[314621791,1708459846059,-173.36,0.00039213,2]
[314621792,1708459846069,-535.61,0.0003926,2]
[314621793,1708459846079,-352.56,0.00039266,2]
[314621794,1708459846089,-335.93170802,0.00039288,10]
[314621795,1708459846098,-17630.28728684,0.000393,2]
[314621796,1708459846126,-2818.99275819,0.000393,2]
[314621797,1708459846140,-2003.35677271,0.0003939,2]
[314621798,1708459846150,-443.33,0.00039507,2]
[314621799,1708459846160,-155.0,0.0003954,2]
[314621800,1708459846170,-156.52647383,0.00039656,2]
[314621801,1708459846182,-307.72,0.00039726,2]
[314621802,1708459846192,-152.56985561,0.00039742,5]
[314621804,1708459846202,-150.0,0.000399,2]
[314621806,1708459846213,-3261.53079464,0.000399,13]
[314621808,1708459846222,-1931.28799206,0.0003998,6]
[314621812,1708459846249,-80288.79630864,0.0003998,6]
[314621814,1708459846259,-1999.99999901,0.0004,4]
[314621816,1708459846269,-3995.64013785,0.0004,30]
[314621818,1708459846278,-130931.76115681,0.0004,7]
[314621820,1708459846287,-8059.67311308,0.0004,30]
[314621822,1708459846297,-10229.07616071,0.0004,7]
[314621824,1708459846305,-578.46053401,0.00040036,12]
[314621826,1708459846314,-2413.0,0.000401,3]
[314621828,1708459846323,-1000.0,0.00040116,2]
[314621830,1708459846333,-173.36,0.00040125,2]
[314621832,1708459846342,-1024.93723132,0.000402,2]
[314621834,1708459846352,-9551.53722061,0.00040211,2]
[314621835,1708459846360,-1382.33746599,0.00040255,9]
[314621837,1708459846370,-2554.3813699,0.00040261,2]
[314621839,1708459846379,-171.81,0.0004027,2]
[314621842,1708459846389,-220.66221371,0.0004029,2]
[314621844,1708459846398,-153.15,0.000403,4]
[314621846,1708459846408,-1240.6,0.000403,4]
[314621848,1708459846417,-1240.6,0.000403,4]
[314621850,1708459846426,-1240.6,0.000403,4]
[314621852,1708459846435,-1240.6,0.000403,4]
[314621854,1708459846444,-1240.6,0.000403,4]
[314621856,1708459846454,-1240.6,0.000403,4]
[314621858,1708459846464,-1240.6,0.000403,4]
[314621860,1708459846473,-1240.6,0.000403,4]
[314621862,1708459846483,-1240.6,0.000403,4]
[314621864,1708459846494,-1240.6,0.000403,4]
[314621866,1708459846503,-1240.6,0.000403,4]
[314621868,1708459846512,-1240.6,0.000403,4]
[314621870,1708459846521,-1240.6,0.000403,4]
[314621872,1708459846530,-1240.6,0.000403,4]
[314621874,1708459846540,-1240.6,0.000403,4]
[314621876,1708459846549,-1240.6,0.000403,4]
[314621878,1708459846558,-1240.6,0.000403,4]
[314621880,1708459846567,-1240.6,0.000403,4]
[314621882,1708459846577,-1240.6,0.000403,4]
[314621884,1708459846586,-1240.6,0.000403,4]
[314621886,1708459846595,-1778.14116318,0.00040379,5]
[314621888,1708459846605,-229.83,0.00040382,2]
[314621890,1708459846614,-152.56985561,0.00040404,8]
[314621892,1708459846623,-556.67,0.00040435,2]
[314621894,1708459846633,-151.49,0.00040463,2]
[314621896,1708459846642,-765.69,0.00040531,2]
[314621898,1708459846652,-555.644053,0.000407,34]
[314621900,1708459846661,-3261.53079464,0.00040722,14]
[314621902,1708459846671,-535.61,0.00040733,2]
[314621904,1708459846683,-3817.0168,0.0004078,3]
[314621906,1708459846692,-1278.29079314,0.0004078,2]
[314621908,1708459846702,-151.642685,0.0004078,2]
[314621910,1708459846712,-909.36344224,0.0004078,2]
[314621912,1708459846721,-3076.35082168,0.0004078,2]
[314621914,1708459846730,-253.53862284,0.0004078,2]
[314621916,1708459846739,-655.88700302,0.0004078,2]
[314621918,1708459846748,-151.0,0.00040793,4]
[314621920,1708459846757,-156.52647383,0.00040832,2]
[314621922,1708459846767,-245000.0,0.0004088,2]
[314621924,1708459846776,-760.98902147,0.0004088,33]
[314621926,1708459846785,-9068.82530884,0.0004088,2]
[314621928,1708459846795,-155.0,0.0004091,2]
[314621930,1708459846804,-250.0,0.00040931,2]
[314621932,1708459846813,-150.0,0.00040931,2]
[314621934,1708459846823,-300.0,0.00040931,7]
[314621936,1708459846831,-100000.0,0.00040932,2]
[314621938,1708459846841,-1094219.18903224,0.0004098,4]
[314621939,1708459846850,-274062.53503869,0.0004098,2]
[314621942,1708459846863,-542.96175472,0.0004098,2]
[314621945,1708459846887,-5189.7,0.0004098,2]
[314621948,1708459846903,-23597.39490704,0.0004098,2]
[314621950,1708459846915,-13921.775,0.0004098,2]
[314621953,1708459846927,-35824.14580635,0.0004098,2]
[314621956,1708459846947,-80194.14015127,0.0004098,2]
[314621958,1708459846961,-1233.57998,0.0004098,2]
[314621960,1708459846972,-11814.1882177,0.0004098,2]
[314622420,1708460945088,-158.94,0.00027397,2]
[314622421,1708460945125,-158.94,0.00032534,2]
[314622422,1708460945148,-182.12,0.0003452,2]
[314622423,1708460947100,-1415.502445,0.0003452,2]
[314622424,1708460947124,-4817.735694,0.0003452,2]
[314622425,1708460947152,-595.627353,0.0003452,2]
[314622426,1708460947174,-2396.433668,0.00034794,2]
[314622427,1708460947195,-7226.603541,0.00034794,2]
[314622428,1708460947216,-893.441029,0.00034794,2]